Cogmind - Beta 17.1 @@@ ROGUE MODE // 2026.09.03 @ 22:06:44 Player: Cereal Killer Result: Destroyed by G-50 Soldier with Heavy Laser Performance ------------- Evolutions (4) 2000 Regions Visited (5) 1000 Robots Destroyed (100) 500 Value Destroyed (3410) 3410 Prototype IDs (32) 640 Alien Tech Used (0) 0 Bonus (8034) 8034 TOTAL SCORE: 15584 Bonus ------- High Alert Combat Kills 641 Follower Combat Kills 293 Prayed to X0-1V1 5000 Major X0-1V1 Interference 1300 Registered with UFD 300 Met Optimus in HQ 500 Cogmind --------- Core Integrity 0/550 Matter 300/300 Energy 1200/1200 System Corruption 0% Temperature Cool (9) Movement Walking (100) Location -6/Factory Parts ------- > --- POWER (2) -------- Light Angular Momentum Engine Light Angular Momentum Engine > --- PROPULSION (5) --- Enhanced Biometal Leg Enhanced Biometal Leg Enhanced Biometal Leg Enhanced Biometal Leg Enhanced Biometal Leg > --- UTILITY (6) ------ Advanced Heat Sink Advanced Heat Sink Improved Melee Analysis Suite ECM Suite X0-1V1's Piety Tracker > --- WEAPON (3) ------- Plasma Rifle Advanced Variable Charge Gun Companion Sword > --- INVENTORY (7) ---- Carbon-fiber Leg Flexi-carbon Leg Enhanced Biometal Leg A0-MCA's Component Scanner Power Bank Plasma Cutter CPS Tube (2) Peak State ------------ > --- POWER ------------ Light Angular Momentum Engine Fusion Compressor > --- PROPULSION ------- Enhanced Biometal Leg Enhanced Biometal Leg Enhanced Biometal Leg Enhanced Biometal Leg Enhanced Biometal Leg > --- UTILITY ---------- Advanced Heat Sink Advanced Heat Sink Improved Melee Analysis Suite ECM Suite Advanced Remote Shield X0-1V1's Piety Tracker > --- WEAPON ----------- Plasma Rifle Advanced Variable Charge Gun Companion Sword > --- INVENTORY -------- Carbon-fiber Leg Flexi-carbon Leg Enhanced Biometal Leg A0-MCA's Component Scanner Power Bank Plasma Cutter CPS Tube [Rating: 115] Favorites ----------- Power Subdweller Power Source Engine Subdweller Power Source Power Core Light Nuclear Core Propulsion Cargo Legs Treads Improved Treads Leg Cargo Legs Wheel Compact Wheel Utility Large Storage Unit Device X0-1V1's Piety Tracker Storage Large Storage Unit Processor Improved Melee Analysis Suite Hackware Hacking Suite Protection Makeshift Kinetic Plating Weapon Assault Rifle Energy Gun Subdweller Laser Energy Cannon Beam Cannon Ballistic Gun Assault Rifle Ballistic Cannon Heavy Flak Cannon Launcher Heavy Missile Launcher Special Weapon CPS Tube Slashing Weapon Companion Sword Build | -11 -10 -10 -9 -9 -6 ------- Run | Yrd Mat Sub Rec Scr Fac Slots Evolved 8 | . . . . . 8 Power 1 | . . . . . 1 Propulsion 2 | . . . . . 2 Utility 4 | . . . . . 4 Weapon 1 | . . . . . 1 Parts Attached 101 | 6 12 10 7 5 61 Power 16 | 1 1 2 1 1 10 Engine 11 | 1 . 2 1 1 6 Core 5 | . 1 . . . 4 Reactor . | . . . . . . Propulsion 32 | 2 5 1 1 . 23 Treads 10 | . 5 . 1 . 4 Leg 14 | . . 1 . . 13 Wheel 8 | 2 . . . . 6 Hover . | . . . . . . Flight . | . . . . . . Utility 29 | . 5 3 1 1 19 Device 17 | . 2 2 1 . 12 Storage 7 | . 3 . . 1 3 Processor 3 | . . . . . 3 Hackware 1 | . . . . . 1 Protection 1 | . . 1 . . . Artifact . | . . . . . . Weapon 24 | 3 1 4 4 3 9 Energy Gun 7 | 2 . . 1 2 2 Energy Cannon 3 | . 1 2 . . . Ballistic Gun 8 | 1 . 2 2 . 3 Ballistic Cannon 1 | . . . . . 1 Launcher 3 | . . . 1 . 2 Special Weapon 1 | . . . . . 1 Impact Weapon . | . . . . . . Slashing Weapon 1 | . . . . 1 . Piercing Weapon . | . . . . . . Special Melee Weapon . | . . . . . . Unidentified Prototypes 9 | . . 1 . 1 7 Parts Lost 42 | . 3 3 2 . 34 Power 6 | . 1 1 . . 4 Propulsion 16 | . 1 . . . 15 Utility 14 | . . 2 1 . 11 Weapon 6 | . 1 . 1 . 4 Highest Loss Streak 9 | . 1 2 1 . 9 To Critical Strikes 1 | . . . 1 . . Average Backups 11 | 1 10 14 13 14 8 Power 1 | . 1 1 2 1 . Propulsion 3 | . 4 5 3 3 1 Utility 4 | . 2 4 5 6 3 Weapon 1 | . 1 2 2 1 1 Tool/Special . | . . . . . . Unused Backups 18 | . . 5 2 3 8 Power 3 | . . 1 1 . 1 Propulsion 7 | . . 4 1 . 2 Utility 4 | . . . . 1 3 Weapon 2 | . . . . 2 . Tool/Special 2 | . . . . . 2 Average Slot Usage (%) 87 | . 97 89 85 86 80 Engine 9 | . 8 11 11 11 7 Core 1 | . 5 . . . 2 Treads 10 | . 23 8 6 11 3 Leg 9 | . . 7 11 11 14 Wheel 2 | . 4 . . . 6 Device 13 | . 13 16 10 11 15 Storage 9 | . 13 11 11 11 4 Processor 2 | . . . . . 7 Protection 5 | . . 7 11 11 . Energy Gun 4 | . 2 . 10 9 1 Energy Cannon 4 | . 11 13 1 . . Ballistic Gun 8 | . 14 11 9 8 3 Slashing Weapon 1 | . . . . 2 5 Peak Build Rating 115 | 5 12 43 46 53 115 Average Rating 44 | 3 10 35 43 46 70 On Entrance 25 | . 5 11 41 46 49 Avg Prop Armor Cover (%) 10 | . 12 . 9 9 13 Naked Turns 3 | . . . . . 3 Heaviest Build 58 | 7 31 50 44 43 58 Greatest Support 150 | 32 46 55 55 55 150 Greatest Overweight (x) 4 | . . . . . 4 Average Overweight (x) . | . . . . . . Largest Inventory Capacity 15 | 5 15 15 15 15 15 Average Capacity 13 | 5 13 15 15 15 11 Most Carried 15 | 3 15 15 15 15 15 Average Carried 12 | 1 11 14 14 14 10 Final Capacity 15 | 5 15 15 15 15 7 Final Carried 15 | 3 15 15 15 15 7 Class Distribution -------------------- 48% | Mutant 34% | Commander-Mutant 16% | Scavenger-Mutant Dominant Class ---------------- Mutant | -10/Materials Mutant | -10/Subcaves Commander-Mutant | -9/Recycling Commander-Mutant | -9/Scraptown Scavenger-Mutant | -6/Factory Resources | -11 -10 -10 -9 -9 -6 ----------- Run | Yrd Mat Sub Rec Scr Fac Matter Collected 2649 | 260 307 313 395 160 1214 Remotely . | . . . . . . Salvage Created 4651 | . 644 462 497 . 3048 Parts 220 | . 45 31 21 . 123 Haulers Intercepted 5 | . 2 . . . 3 Recyclers Shooed 3 | . . . 3 . . Parts Field Recycled . | . . . . . . Retrieved Matter . | . . . . . . Parts Self-Destructed 7 | . . 7 . . . Prevented . | . . . . . . Parts Restored . | . . . . . . Kills | -11 -10 -10 -9 -9 -6 ------- Run | Yrd Mat Sub Rec Scr Fac Combat Hostiles Destroyed 69 | . 13 10 7 . 39 Melee 15 | . . . . . 15 Guns 21 | . 8 3 2 . 8 Cannons 13 | . 5 7 . . 1 AOE 20 | . . . 5 . 15 Classes Destroyed 14 | . 5 1 5 . 3 Worker 5 | . . . . . 5 Builder 7 | . 2 . 1 . 4 Hauler 5 | . 2 . . . 3 Recycler 11 | . . . 2 . 9 Operator 3 | . 2 . . . 1 Swarmer 14 | . 3 . . . 11 Grunt 28 | . 10 2 . . 16 Brawler 1 | . . . 1 . . Sentry 6 | . . . 3 . 3 Specialist 3 | . . . . . 3 Hunter 2 | . . . 2 . . Programmer 6 | . . . 1 . 5 Heavy 1 | . . . . . 1 Subdweller 8 | . . 8 . . . Best Kill Streak 9 | . 3 3 4 . 9 Combat Bots Only 4 | . 3 3 3 . 4 Max Kills in Single Turn 4 | . 1 1 2 . 4 Gunslinging . | . . . . . . Exploded 2 | . . . 2 . 2 Melee 1 | . . . . . 1 Uniques/NPCs Destroyed . | . . . . . . Combat | -11 -10 -10 -9 -9 -6 -------- Run | Yrd Mat Sub Rec Scr Fac Hostile Shots Fired 655 | . 72 36 46 . 501 Missed 201 | . 23 8 14 . 156 Hits 454 | . 49 28 32 . 345 Projectile 454 | . 49 28 32 . 345 Critical Strikes 11 | . . . 1 . 10 Part Disruptions 1 | . . . . . 1 Damage Taken 6602 | . 591 630 452 . 4929 Core 1341 | . 106 102 71 . 1062 Absorbed by Shields 780 | . . . 33 . 747 Ignored by Resistances 79 | . . 39 38 . 2 Regen/Repaired (Parts) 106 | . . . . . 106 Core Remaining (%) 76 | 100 . . . 52 . Volleys Fired 191 | . 54 46 29 . 62 Largest 3 | . 2 2 2 . 3 Hottest 155 | . 80 100 103 . 155 Shots Fired 321 | . 107 67 53 . 94 Gun 208 | . 77 22 44 . 65 Cannon 80 | . 30 45 1 . 4 Launcher 31 | . . . 8 . 23 Special 2 | . . . . . 2 Kinetic 134 | . 54 22 18 . 40 Thermal 154 | . 53 45 27 . 29 Explosive 31 | . . . 8 . 23 Electromagnetic . | . . . . . . Robot Hit Streak 20 | . 17 20 11 . 11 Robot Miss Streak 4 | . 3 3 4 . 4 Penetration Max . | . . . . . . Secondary Targets 4 | . 1 . . . 3 Max Gunslinging Chain 1 | . 1 . . . 1 Shots Hit Robots 286 | . 70 38 34 . 144 Core Hits 146 | . 32 13 18 . 83 Critical Kills . | . . . . . . Critical Parts Destroyed . | . . . . . . Critical Strikes 7 | . 3 . . . 4 Burn 3 | . 3 . . . . Melee Attacks 114 | . . . . . 114 Impact . | . . . . . . Slashing 114 | . . . . . 114 Piercing . | . . . . . . Sneak Attacks 10 | . . . . . 10 Combat Hostiles . | . . . . . . Follow-up Attacks 2 | . . . . . 2 Damage Inflicted 10670 | . 1084 680 1077 . 7829 Guns 2437 | . 591 154 589 . 1103 Cannons 1166 | . 493 526 . . 147 Explosions 2715 | . . . 488 . 2227 Melee 4352 | . . . . . 4352 Ramming . | . . . . . . Kinetic 1447 | . 417 154 223 . 653 Thermal 2399 | . 667 526 366 . 840 Explosive 2472 | . . . 488 . 1984 Electromagnetic . | . . . . . . Impact . | . . . . . . Slashing 4352 | . . . . . 4352 Piercing . | . . . . . . Highest Corruption 6 | . . 6 6 . . Average Corruption 6 | . . 6 6 . . Corruption Purged . | . . . . . . Corruption Blocked . | . . . . . . Effects 20 | . . 6 14 . . Message Errors 3 | . . . 3 . . Matter Fused 5 | . . 3 2 . . Heat Flow Errors 2 | . . . 2 . . Energy Discharges 5 | . . . 5 . . Data Loss (minor) 2 | . . 1 1 . . Misfires 2 | . . 1 1 . . Alerts 1 | . . 1 . . . Overload Shots . | . . . . . . Overflow Damage 329 | . . . 5 . 324 Projectiles . | . . . . . . Explosions 191 | . . . 5 . 186 Melee 138 | . . . . . 138 Knockbacks . | . . . . . . Impact . | . . . . . . Kinetic . | . . . . . . Secondary . | . . . . . . Self-Inflicted Damage 231 | . . . 65 . 166 Shots 7 | . . . 3 . 4 Rammed . | . . . . . . Targets Rammed . | . . . . . . Kicked . | . . . . . . Crushed . | . . . . . . Highest Temperature 298 | . 186 56 210 . 298 Average Temperature 67 | . 70 17 55 . 92 Received Heat Transfer 1102 | . 303 84 30 . 685 Siege Activations . | . . . . . . Martial Activations . | . . . . . . Shielding Activations . | . . . . . . Robots Disrupted . | . . . . . . Combat Hostiles . | . . . . . . Robots Corrupted . | . . . . . . Combat Hostiles . | . . . . . . Parts Fried . | . . . . . . Impact Corruptions . | . . . . . . Robots Melted . | . . . . . . Combat Hostiles . | . . . . . . Parts Melted 17 | . 4 1 . . 12 Heat Transferred 4023 | . 1776 814 428 . 1005 Parts Sabotaged . | . . . . . . Parts Stolen . | . . . . . . Parts Stripped . | . . . . . . Power Chain Reactions . | . . . . . . Alert | -11 -10 -10 -9 -9 -6 ------- Run | Yrd Mat Sub Rec Scr Fac Maximum Alert Level 4 | . . . . . 4 Low Security (%) 56 | 100 100 . 100 . 8 Level 1 18 | . . . . . 38 Level 2 5 | . . . . . 11 Level 3 10 | . . . . . 22 Level 4 9 | . . . . . 19 Level 5 . | . . . . . . High Security . | . . . . . . Max Security . | . . . . . . Peak Influence 1306 | . 70 . 72 . 1306 Initial . | . . . . . . Average 308 | . 17 . 16 . 634 Influence Increases 3066 | . 366 50 315 . 2335 Destroy 0b10 Robot/C 1420 | . 260 40 180 . 940 Destroy 0b10 Robot/NC 190 | . 30 . 25 . 135 Destroy Leader 282 | . 44 10 . . 228 Allied During Kill 75 | . . . 15 . 60 Trap Triggered on 0b10 10 | . . . . . 10 Successful Hack 98 | . 14 . 48 . 36 Disable Machine 270 | . . . . . 270 Destroy Structure 317 | . 3 . 47 . 267 Lose Combat Pursuer 120 | . 15 . . . 105 Miscellaneous 284 | . . . . . 284 Influence Decreases 1766 | . 308 108 315 . 1035 Entered New Map 29 | . . 29 . . . Time Decay 1195 | . 288 79 253 . 575 Lost Part 360 | . 20 . 10 . 330 Lost Ally 182 | . . . 52 . 130 Squads Dispatched 20 | . 1 . . . 19 Investigation 5 | . . . . . 5 Extermination 3 | . . . . . 3 Reinforcement 9 | . 1 . . . 8 Assault . | . . . . . . Garrison 3 | . . . . . 3 Intercept . | . . . . . . Searches Triggered . | . . . . . . Construction Impeded 2 | . . . . . 2 Haulers Reinforced . | . . . . . . Active Scanning Responses . | . . . . . . Cargo Convoy Interrupts 1 | . . . . . 1 Stealth | -11 -10 -10 -9 -9 -6 --------- Run | Yrd Mat Sub Rec Scr Fac Distress Signals 4 | . . . . . 4 Communications Jammed . | . . . . . . Distress Signals . | . . . . . . Times Spotted 115 | . 22 11 13 . 69 Peak Tracking Total 6 | . 3 3 4 . 6 Tactical Retreats 9 | . 1 . . . 8 ECM-based Alert Blocks 6 | . . . . . 6 Traps | -11 -10 -10 -9 -9 -6 ------- Run | Yrd Mat Sub Rec Scr Fac Traps Triggered 5 | . 3 2 . . . Indirectly . | . . . . . . Trap Hack Attempts . | . . . . . . Triggered . | . . . . . . Disarmed . | . . . . . . Reprogrammed . | . . . . . . Reused 1 | . . . . . 1 Traps Extracted . | . . . . . . Installed 3 | . . . . . 3 Triggered 1 | . . . . . 1 Most Traps Carried 3 | . . . . . 3 Machines | -11 -10 -10 -9 -9 -6 ---------- Run | Yrd Mat Sub Rec Scr Fac Machines Disabled 19 | . . 1 . . 18 Max in Single Turn 4 | . . 1 . . 4 Garrison Access 1 | . . . . . 1 Machines Repaired . | . . . . . . Machines Dismantled . | . . . . . . Machines Sabotaged . | . . . . . . Overloaded Fab Kills . | . . . . . . Hacking | -11 -10 -10 -9 -9 -6 --------- Run | Yrd Mat Sub Rec Scr Fac Machines Accessed 22 | . 3 2 4 5 8 Terminals 8 | . 3 . 4 . 1 Fabricators . | . . . . . . Repair Stations 1 | . . . . . 1 Recycling Units 4 | . . . . . 4 Scanalyzers 1 | . . . . . 1 Garrison Access 1 | . . . . . 1 Total Hacks 58 | . 8 5 10 17 18 Successful 45 | . 2 5 7 17 14 Failed 13 | . 6 . 3 . 4 Catastrophic 4 | . 2 . 1 . 1 Database Lockouts . | . . . . . . Manual 15 | . 6 . 4 . 5 Terminals 20 | . 8 . 10 . 2 Fabricators . | . . . . . . Repair Stations 2 | . . . . . 2 Recycling Units 5 | . . . . . 5 Scanalyzers 7 | . . . . . 7 Garrison Access 2 | . . . . . 2 Terminal Hacks 32 | . 2 5 7 17 1 Record 19 | . . 4 . 15 . Part Schematic 3 | . . . 3 . . Robot Schematic 1 | . . . 1 . . Robot Analysis 3 | . 1 . 2 . . Prototype ID Bank 1 | . . . 1 . . Open Door 1 | . . . . 1 . Locate Traps 1 | . . . . . 1 Zone Layout 1 | . 1 . . . . Proto ID Catalog 2 | . . 1 . 1 . Fabricator Hacks . | . . . . . . Repair Station Hacks 2 | . . . . . 2 Scan Component 1 | . . . . . 1 Repair 1 | . . . . . 1 Recycling Unit Hacks . | . . . . . . Scanalyzer 6 | . . . . . 6 Insert Component 1 | . . . . . 1 Retrieve Study 5 | . . . . . 5 Garrison Access Hacks 1 | . . . . . 1 Seal Access 1 | . . . . . 1 Unauthorized Hacks 4 | . . . . . 4 Terminals . | . . . . . . Fabricators . | . . . . . . Repair Stations . | . . . . . . Recycling Units 4 | . . . . . 4 Fedlink 4 | . . . . . 4 Scanalyzers . | . . . . . . Garrison Access . | . . . . . . Data Cores Recovered . | . . . . . . Used . | . . . . . . Hacking Detections 10 | . 3 . 4 . 3 Full Trace Events 4 | . 1 . 2 . 1 Feedback Events . | . . . . . . Feedback Blocked . | . . . . . . Robot Schematics Acquired 1 | . . . 1 . . Robots Built . | . . . . . . Authchips . | . . . . . . Time . | . . . . . . Total Robot Build Rating . | . . . . . . Part Schematics Acquired 3 | . . . 3 . . Parts Built . | . . . . . . Authchips . | . . . . . . Time . | . . . . . . Total Part Build Rating . | . . . . . . Part Studies Acquired 5 | . . . . . 5 Parts Repaired 1 | . . . . . 1 Time 19 | . . . . . 19 Parts Recycled . | . . . . . . Recycled Matter . | . . . . . . Retrieved Matter . | . . . . . . Retrieved Components . | . . . . . . Parts Scanalyzed . | . . . . . . Part Schematics Acquired . | . . . . . . Parts Damaged . | . . . . . . Bothacking | -11 -10 -10 -9 -9 -6 ------------ Run | Yrd Mat Sub Rec Scr Fac Used RIF Installer . | . . . . . . Robots Hacked . | . . . . . . Non-combat . | . . . . . . Combat . | . . . . . . Robot Hacks Applied . | . . . . . . Relay Couplers Released . | . . . . . . Fabnet Peak Effective % . | . . . . . . Robots Rewired 17 | . . . 17 . . Allies Hacked . | . . . . . . Hacks Repelled . | . . . . . . Allies | -11 -10 -10 -9 -9 -6 -------- Run | Yrd Mat Sub Rec Scr Fac Total Allies 19 | . . 2 17 . . Largest Group 12 | . . 2 12 12 12 Highest-Rated Group 196 | . . 10 196 194 194 Highest-Rated Ally 34 | . . 5 34 34 34 Initial UFD Resources 24 | . . . . . 24 Total Orders 4 | . . . . 3 1 FOLLOW 1 | . . . . 1 . TUNNEL 1 | . . . . . 1 COLLECT 2 | . . . . 2 . Ally Attacks 36 | . . 19 4 . 13 Total Damage 1591 | . . 37 58 . 1496 Kills 16 | . . . 2 . 14 Allies Corrupted . | . . . . . . Allies Melted . | . . . . . . X0-1V1 Amusement Gains 65 | . 20 10 10 . 25 Average Entertainment 16 | . . 18 14 . 16 Good Acts 27 | . . 9 6 . 12 Bad Acts 18 | . . 6 2 . 10 Intel | -11 -10 -10 -9 -9 -6 ------- Run | Yrd Mat Sub Rec Scr Fac Active Infowar (turns) 1990 | . 582 646 . . 762 Structural 1714 | . 582 646 . . 486 ECM 276 | . . . . . 276 Robot Analysis Total 2 | . 1 . 1 . . Derelict Logs Recovered 5 | . . 1 . 4 . Drone Launches . | . . . . . . Drone Recoveries . | . . . . . . Exploration | -11 -10 -10 -9 -9 -6 ------------- Run | Yrd Mat Sub Rec Scr Fac Turns Passed 6722 | 50 1155 1203 902 1529 1883 Spaces Moved 3860 | 39 478 754 469 1104 1016 Core 20 | 8 . . . . 12 Treads 545 | . 344 201 . . . Legs 2636 | . . 553 469 1104 510 Wheels 659 | 31 134 . . . 494 Hover . | . . . . . . Flight . | . . . . . . Fastest Speed 50 | 50 100 130 130 130 50 Average Speed 128 | 89 143 137 130 130 113 Slowest Speed 250 | 100 160 160 130 130 250 Overloaded Moves . | . . . . . . Propulsion Burnouts . | . . . . . . Robots Hopped . | . . . . . . Potential Cave-ins . | . . . . . . Cave-ins Triggered . | . . . . . . Exploration Rate (%) 56 | 3 84 62 83 83 24 Regions Visited 5 Branch Regions 3 Pre-discovered Areas 1 | . . . . . 1 Known Exits Taken 1 | . . 1 . . . Unknown Exits Taken 4 | 1 1 . 1 1 . Scrap Searched 8 | . . 2 . 6 . Spaces Dug 12 | . . 2 . . 10 Terrain Destroyed 343 | . . 5 47 . 291 Melee 10 | . . . . . 10 Projectile 9 | . . 5 1 . 3 AOE 324 | . . . 46 . 278 Terrain Rammed . | . . . . . . Walls Destroyed . | . . . . . . Machines Disabled . | . . . . . . Actions | -11 -10 -10 -9 -9 -6 --------- Run | Yrd Mat Sub Rec Scr Fac Total 5154 | 53 842 852 708 1202 1497 Wait 526 | 1 267 14 23 73 148 Move 3855 | 38 477 753 468 1103 1016 Hop . | . . . . . . Pick Up 100 | 8 23 13 5 9 42 Fast Attach 37 | . . 2 2 4 29 Attach 53 | 5 8 4 3 . 33 Detach 3 | . . . 1 . 2 Swap 34 | 1 8 6 3 1 15 Drop 56 | . 5 14 3 12 22 Fire 191 | . 54 46 29 . 62 Melee 112 | . . . . . 112 Ram . | . . . . . . Kick . | . . . . . . Crush . | . . . . . . Escape Stasis . | . . . . . . Rewire 171 | . . . 171 . . Trap 3 | . . . . . 3 Miscellaneous 13 | . . . . . 13 Route ------- -11/Scrapyard -10/Materials (discovered 6 exits: [*Mat x3] / [*Min x2] / *Sub) -10/Subcaves (discovered 4 exits: *Mat x2 / *Rec / *Scr) -9/Recycling (discovered 2 exits: [*Fac] / *Scr) -9/Scraptown (discovered 2 exits: *Fac x2) -6/Factory (discovered 3 exits: [*Fac x2] / Low) History --------- Turn | Location | Event 33 | -11/Scrapyard | Discovered new exit (range 14) 51 | -11/Scrapyard | Entered Materials 407 | -10/Materials | Discovered new exit (range 3) 522 | -10/Materials | Discovered new exit (range 14) 649 | -10/Materials | Discovered new exit (range 14) 664 | -10/Materials | Build established: Mutant 670 | -10/Materials | Discovered new exit (range 14) 953 | -10/Materials | Discovered new exit (range 14) 1169 | -10/Materials | Discovered new exit (range 10) 1206 | -10/Materials | Prayed at D.C.S.S. Altar Unit 1206 | -10/Materials | Entered Subcaves 1207 | -10/Subcaves | Approached by a straggling Scientist 1316 | -10/Subcaves | Energy generation permanently improved by X0-1V1 (+10; -100 max core) 1342 | -10/Subcaves | Shifting Twisted Machinery released Sub. Shrapnel Launcher 1378 | -10/Subcaves | Shifting Twisted Machinery released Sub. Beam Cannon 1501 | -10/Subcaves | Identified exit to Materials 1538 | -10/Subcaves | Visited 4L-MR0's lab 1566 | -10/Subcaves | Found Cargo Legs 1567 | -10/Subcaves | Attached Cargo Legs, gained temporary slots: Utility x2 1633 | -10/Subcaves | X0-1V1 activates XOMVISION 1648 | -10/Subcaves | Ambushed by Subdwellers from Twisted Machinery 1656 | -10/Subcaves | Weapon slot count temporarily expanded by X0-1V1 (+1) 1695 | -10/Subcaves | Visited Clippyterm 1699 | -10/Subcaves | Learned Factory fabricator intel 1776 | -10/Subcaves | X0-1V1 revealed exit location to -8/Materials 1840 | -10/Subcaves | X0-1V1 sent allied S-10 Pest (x2) 1840 | -10/Subcaves | Core integrity fell below 50% 2026 | -10/Subcaves | Weapon slot count reverted to normal (-1) 2156 | -10/Subcaves | A Subdweller sparked back to life 2156 | -10/Subcaves | A Subdweller sparked back to life 2191 | -10/Subcaves | Found Power Bank 2214 | -10/Subcaves | X0-1V1 caused items to flee you 2276 | -10/Subcaves | Identified exit to Recycling 2276 | -10/Subcaves | X0-1V1 revealed exit location to -9/Recycling 2320 | -10/Subcaves | Shifting Twisted Machinery released Sub. Beam Cannon 2332 | -10/Subcaves | Shifting Twisted Machinery released Barrage Gun 2344 | -10/Subcaves | Core integrity restored by X0-1V1 (+36) 2383 | -10/Subcaves | X0-1V1 activates XOMVISION 2404 | -10/Subcaves | Items stopped fleeing you 2409 | -10/Subcaves | Entered Recycling 2603 | -9/Recycling | Core integrity restored by X0-1V1 (+36) 2646 | -9/Recycling | X0-1V1 whisked you away to safety 2730 | -9/Recycling | Propulsion slot count permanently improved by X0-1V1 (+1) 2874 | -9/Recycling | Core integrity restored by X0-1V1 (+36) 3036 | -9/Recycling | Discovered new exit (range 5) 3037 | -9/Recycling | X0-1V1 activates XOMVISION 3137 | -9/Recycling | Build established: Commander-Mutant 3252 | -9/Recycling | Scanned before Scraplab entrance 3270 | -9/Recycling | Entered Scraplab 3285 | -9/Recycling | Discovered new exit (range 3) 3311 | -9/Recycling | Entered Scraptown 3311 | -9/Scraptown | Accompanied by 12 allies 3421 | -9/Scraptown | Heard Great Nut preacher, LISTEN AND RECITE! 3495 | -9/Scraptown | Visited UFD Registry 3495 | -9/Scraptown | Registered with UFD as "Fibercase" 3513 | -9/Scraptown | Visited TADAMA 3529 | -9/Scraptown | Visited Symbiants 3570 | -9/Scraptown | Scanned Subdweller tech in exchange for log data 3573 | -9/Scraptown | Learned Factory non-interactive machine intel 3589 | -9/Scraptown | Discovered new exit (range 11) 3616 | -9/Scraptown | Guru changed UFD alias to "Roughkit" 3724 | -9/Scraptown | Visited The Evicted 3734 | -9/Scraptown | Visited Bundlers 3799 | -9/Scraptown | Visited Shadow of the Wyrm 3812 | -9/Scraptown | Visited Cyclists 3821 | -9/Scraptown | Entered Cyclist Reading Room 4047 | -9/Scraptown | Visited Awakened 4086 | -9/Scraptown | Visited Science Guys 4162 | -9/Scraptown | Visited Curators Association 4239 | -9/Scraptown | Delivered Scrap Shield to a Scientist 4334 | -9/Scraptown | Visited Junk Repository 4426 | -9/Scraptown | Visited DA-N13 Charitable Foundation 4431 | -9/Scraptown | Found DCF Scrap (28 items) 4478 | -9/Scraptown | Visited Supply Room 4519 | -9/Scraptown | Visited A0-MCA Data Center 4527 | -9/Scraptown | Given a B rating by A0-MCA 4530 | -9/Scraptown | Found A0-MCA's Component Scanner 4554 | -9/Scraptown | Visited Sword Containment 4568 | -9/Scraptown | Found Prototype Slashing Weapon 4568 | -9/Scraptown | Identified Companion Sword 4601 | -9/Scraptown | Visited Junk Repository 4636 | -9/Scraptown | Visited Research Penetration Think Tank 4735 | -9/Scraptown | Met Optimus 4735 | -9/Scraptown | Accepted into 0bPrime 4832 | -9/Scraptown | Discovered new exit (range 3) 4840 | -9/Scraptown | Entered Factory 4840 | -6/Factory | Accompanied by 12 allies 4840 | -6/Factory | Evolved 8 slots: Power x1, Propulsion x2, Utility x4, Weapon x1 4841 | -6/Factory | Identified exit to Lower Caves 4842 | -6/Factory | Loaded intel: 207 non-interactive machine locations 4843 | -6/Factory | Loaded intel: 6 fabricator locations 4878 | -6/Factory | Loaded intel: 8 recycling unit locations 4937 | -6/Factory | Lost 3 allies 5007 | -6/Factory | Lost 4 allies 5130 | -6/Factory | Learned location of Protoforge (-2) 5145 | -6/Factory | Lost 3 allies 5395 | -6/Factory | Lost 7 parts (1p4n2u) 5433 | -6/Factory | Repaired Carbon-fiber Leg+ 5453 | -6/Factory | Attached CPS modules to X-67 Chaingunner 5472 | -6/Factory | Core integrity fell below 50% 5473 | -6/Factory | Attached CPS modules to X-67 Chaingunner 5517 | -6/Factory | Lost 8 parts (1p6n1u) 5595 | -6/Factory | Discovered new exit (range 16) 5664 | -6/Factory | Build established: Scavenger-Mutant 5702 | -6/Factory | X0-1V1 sent you into danger 5711 | -6/Factory | X0-1V1 added 0b10 threat records associated with you (major) 5752 | -6/Factory | Inventory capacity permanently improved by X0-1V1 (+2; -200 max core) 5878 | -6/Factory | X0-1V1 foreshadows a heat wave 5882 | -6/Factory | Discovered new exit (range 16) 6050 | -6/Factory | Ambient heat levels rising (+10) 6204 | -6/Factory | Cargo convoy interrupted 6255 | -6/Factory | Ambient heat levels rising (+10) 6268 | -6/Factory | Core integrity fell below 20% 6294 | -6/Factory | Garrison activated, responded to threat 6304 | -6/Factory | Released all parts (4) 6326 | -6/Factory | Lost 9 parts (1p3n2u3w) 6428 | -6/Factory | Lost 3 parts (1p1u1w) 6453 | -6/Factory | Ambient heat levels falling (-10) 6541 | -6/Factory | X0-1V1 upgraded hostiles (x1) 6585 | -6/Factory | Ambient heat levels falling (-10) 6723 | -6/Factory | Destroyed by G-50 Soldier with Heavy Laser Last Messages --------------- 06626_ G-50 Soldier destroyed. 06646_ Dropped Fusion Compressor. 06647_ Acquired Lgt. Angular Momentum Engine+. 06653_ U-05 Engineer lays Concrete. 06670_ Acquired 10 matter. 06674_ Adv. Remote Shield destroyed. 06678_ G-50 Soldier Lgt. Angular Momentum Engine severed. 06680_ Companion Sword surprise attacks P-60 Hacker. 06683_ G-50 Soldier destroyed. 06683_ Switching to secondary target: G-50 Soldier. 06689_ Gravmag System melted. 06689_ P-60 Hacker destroyed. 06689_ Switching to secondary target: G-50 Soldier. 06692_ G-50 Soldier destroyed. 06703_ U-05 Engineer lays Concrete. 06723_ X0-1V1 guffaws! Map ----- +----------------------------------------------------+ | ????????????????######??? ???"""???# " " | | ?????????????? !??# #??"""???# """"""% | | ?????????????? ??# #????????# " | | ??????????????"" ??# #????????#[=!""%""" | | ??????????????"" ??# #????????## "" " | | ??????????????""" ?# #?????????# # " | | ??????????# """ !] ## #######???# # " !% | | ??????????? """ !] = # # ##### # # " | | ????????????? ! # ## ### | | ????????????? " %* # # % ## | | ?????????????G" # " ####### | | ???????????? " ! % != " #?# # | | ?????? ?????? [ # ! ##?# | | ?????? ###+#####" #### g ## ##?# | | ????? % ! % # # #?# ! | | ????? %= # "##?## | | ????< % # "#???# | | ???? %% %+ = * ##???## | | ???? # ! ]###???# | | ???????? ############## ! # " #???# | | ?????????########### #* =# # #???# | | ?????????#! ! # % #%! % [ #???# | | ?????????#"""% # # # % #?# | | ?????????#"R # # ## # ####""####?# | | ?????????#""" ### ## # # ### #????### | | ?????????# "" # # @ ## ###??##??????? | | ???####??# % ### # ####????????????? | | ???####??# ## ######???????????????? | | ??? ??# ### #????????????????????? | | ??? ???# """" ### % #????????????????????? | | ??? ???# """" ### #????????????????????? | | """ ???# """" ### ###############??????? | | """ "???# """" ### ## #??????? | | """ "???# """" ### ## ""#?????## | | ? "???# """" ### ## Y"#????## | | # ## # ""#????# | | ####+#########+####### #%[!!! #????# | | %^% %% !%% % [*#!*!!! #????# | | % =!/%%! % #????# | | %% [#= """"[#????# | | ####/################# #%! """"=#??????# | | ! ############# #[ """" #??????# | | = ###?????????######### """"%#??????# | | ##??????????????????# ==#??????? | | ! =##??????????????????##### ########??????? | | ##??????????????????????###?????????????? | | """Y""" ##??????????????????????????????????????? | | """"""" ##??????????????????????????????????????? | | ##??????????????????????????????????????? | | ###########??????????????????????????????????????? | +----------------------------------------------------+ Best States ------------- Heat Dissipation 75 Coolant Potential 65 Energy Generation 43 Energy Capacity 1700 Matter Stores 300 Matter Capacity 600 Sight Range 22 Terrain Scan Density 10 ECM Strength 1 Armor Coverage 100 Resistance: KI 10 Weapon Cycling 15 Evasion (%) 55 Melee Accuracy 6 Core Analysis 6 Recoil Reduction 2 Kinecelleration 30 Offensive Hacking 10 Authchip Count 1 Item Schematics ----------------- Mic. Nuclear Core | -9/Recycling | Hacked Particle Cannon | -9/Recycling | Hacked Wheel | -9/Recycling | Hacked Robot Schematics ------------------ I-25 Savior | -9/Recycling | Hacked Fabricated ------------ Nothing Repaired ---------- Carbon-fiber Leg | 3% | -6/Factory Studied --------- Imp. Medium Treads | -6/Factory | Hacked Wheel | -6/Factory | Hacked Carbon-fiber Leg | -6/Factory | Hacked Lgt. Angular Momentum Engine | -6/Factory | Hacked Hvy. Missile Launcher | -6/Factory | Hacked Alien Tech Used ----------------- None Achievements -------------- Longdome?! Challenges ------------ None Game ------ Seed PiercingSmartPick Manual? 0 Play Time 01:15:31 Cumulative 353.6 hours Start 2026.09.03 @ 20:45:55 End 2026.09.03 @ 22:06:44 Sessions 1 Manual Loads 0 Difficulty Rogue Special Mode None Game No. 269 Rogue 260 Adventurer 9 Explorer 0 Win Type - Total 5 Types 4/0/0/1/0/0/0/0/0/0 Lore% 88 Gallery% 73 Achievement% 54 Wizard Run 0 Options --------- Layout 1 ASCII 0 Keyboard 0 Movement Numpad Keybinds 0 Fullscreen 1 Font 24/Smallcaps Map View 50x35 Zoom Use 0% Tactical HUD 1 Map Filters NONE Filters NONE Steam 1 RUN: 3afe5910-d728-4751-a83b-f93ded74ae22